bitfinex/quotes_BTCUSD_20250316
["timestamp","ask_amount","ask_price","bid_price","bid_amount"]
[1742132790984,0.26054092,82889.0,82884.0,0.241299]
[1742132791137,0.26054092,82889.0,82887.0,0.241292]
[1742132791138,0.01925292,82889.0,82887.0,0.241292]
[1742132791351,0.01925292,82889.0,82888.0,0.012064]
[1742132792532,0.01925292,82889.0,82888.0,0.087864]
[1742132792705,0.01925292,82889.0,82888.0,0.08907038]
[1742132793552,0.01925292,82889.0,82888.0,0.087864]
[1742132793734,0.01925292,82889.0,82888.0,0.089864]
[1742132794431,0.01925292,82889.0,82888.0,0.087864]
[1742132794646,0.01925292,82889.0,82888.0,0.091864]
[1742132795111,0.01925292,82889.0,82888.0,0.092864]
[1742132796153,0.01925292,82889.0,82888.0,0.09407027]
[1742132797166,0.0003386,82889.0,82888.0,0.092864]
[1742132797371,0.0003386,82889.0,82888.0,0.09407022]
[1742132797927,0.0003386,82889.0,82888.0,0.092864]
[1742132798584,0.0003386,82889.0,82888.0,0.09407024]
[1742132799297,0.0003386,82889.0,82888.0,0.092864]
[1742132800496,0.0192524,82889.0,82888.0,0.092864]
[1742132803493,0.0192524,82889.0,82888.0,0.09407026]
[1742132803683,0.0192524,82889.0,82888.0,0.14017026]
[1742132804682,0.0192524,82889.0,82888.0,0.13617026]
[1742132804937,0.0202524,82889.0,82888.0,0.15724266]
[1742132805164,4e-07,82889.0,82888.0,0.17178351]
[1742132805371,4e-07,82889.0,82888.0,0.17195271]
[1742132805488,4e-07,82889.0,82888.0,0.17095271]
[1742132805689,4e-07,82889.0,82888.0,0.21363812]
[1742132805910,8e-07,82897.0,82896.0,0.381329]
[1742132806113,0.0113389,82930.0,82896.0,0.381329]
[1742132806114,2e-07,82903.0,82902.0,0.25331]
[1742132806315,0.0113389,82930.0,82929.0,0.253228]
[1742132806669,0.0003382,82934.0,82932.0,0.241161]
[1742132806790,0.0003382,82934.0,82932.0,0.253219]
[1742132807240,0.00046252,82934.0,82930.0,0.241167]
[1742132807487,0.00046252,82934.0,82930.0,0.253225]
[1742132808472,0.00046252,82934.0,82931.0,0.253219]
[1742132808645,0.00046252,82934.0,82933.0,0.253215]
[1742132809267,0.00046252,82934.0,82931.0,0.253219]
[1742132809594,0.00046252,82934.0,82930.0,0.012058]
[1742132809748,0.01936719,82934.0,82932.0,0.001]
[1742132810148,0.01936719,82934.0,82930.0,0.012058]
[1742132810464,0.00046252,82934.0,82931.0,0.25422]
[1742132810868,0.241158,82933.0,82931.0,0.001]
[1742132811076,0.312058,82932.0,82931.0,0.001]
[1742132811306,0.012059,82923.0,82915.0,0.01206]
[1742132811485,0.253249,82922.0,82916.0,0.01206]
[1742132811677,0.253249,82922.0,82917.0,0.01206]
[1742132811880,0.253254,82921.0,82916.0,0.01206]
[1742132812095,0.241198,82920.0,82915.0,0.01206]
[1742132812494,0.253254,82921.0,82917.0,0.241204]
[1742132812870,0.253222,82931.0,82919.0,0.012059]
[1742132813112,0.253222,82931.0,82925.0,0.241181]
[1742132813113,0.012058,82931.0,82925.0,0.241181]
[1742132813276,0.253224,82931.0,82925.0,0.241181]
[1742132813616,0.01890604,82929.0,82925.0,0.241181]
[1742132813834,0.01890604,82929.0,82925.0,0.012059]
[1742132814112,0.01890604,82929.0,82927.0,0.253231]
[1742132814316,0.01890604,82929.0,82926.0,0.012058]
[1742132814583,0.01890604,82929.0,82928.0,0.012058]
[1742132815740,0.01890604,82929.0,82928.0,0.093958]
[1742132816222,0.01890604,82929.0,82928.0,0.140058]
[1742132816635,0.00046252,82934.0,82933.0,0.012057]
[1742132816835,0.00046252,82934.0,82933.0,0.253215]
[1742132818354,0.00046252,82934.0,82933.0,0.254215]
[1742132819356,0.00046252,82934.0,82933.0,0.255215]
[1742132820519,0.00046252,82934.0,82933.0,0.001]
[1742132820726,0.01251952,82934.0,82933.0,0.001]
[1742132820882,0.01251952,82934.0,82933.0,0.003]
[1742132821062,0.01251952,82934.0,82933.0,0.006]
[1742132821245,0.31251952,82934.0,82933.0,0.003]
[1742132821458,0.50400823,82934.0,82933.0,0.007]
[1742132821663,0.31251952,82934.0,82933.0,0.004]
[1742132822928,0.2999,82929.0,82926.0,0.241177]
[1742132823132,0.2999,82929.0,82927.0,0.253231]
[1742132823329,0.00046252,82934.0,82932.0,0.012058]
[1742132823528,0.00046252,82934.0,82933.0,0.012057]
[1742132823998,0.00046252,82934.0,82933.0,0.01326266]
[1742132824204,0.00046252,82934.0,82933.0,0.012057]
[1742132825096,0.00046252,82934.0,82930.0,0.241167]
[1742132825278,0.00046252,82934.0,82929.0,0.253226]
[1742132825279,0.03142348,82934.0,82929.0,0.253226]
[1742132825478,0.01936648,82934.0,82930.0,0.241165]
[1742132825696,0.01936648,82934.0,82933.0,0.004]
[1742132826229,0.03142348,82934.0,82933.0,0.004]
[1742132826485,0.03142348,82934.0,82922.0,0.241188]
[1742132826486,0.012058,82932.0,82924.0,0.012059]
[1742132826693,0.27257948,82934.0,82928.0,0.241171]
[1742132826896,0.27257948,82934.0,82933.0,0.003]
[1742132827303,0.241164,82931.0,82926.0,0.253235]
[1742132827522,0.241172,82929.0,82924.0,0.012059]
[1742132827728,0.24119,82922.0,82917.0,0.241203]
[1742132827933,0.241199,82919.0,82914.0,0.253272]
[1742132828142,0.01206,82917.0,82913.0,0.241215]
[1742132828352,0.253258,82919.0,82913.0,0.253275]
[1742132828467,0.01206,82918.0,82913.0,0.253275]
[1742132831481,0.253304,82904.0,82903.0,0.0001692]
[1742132832036,0.3,82906.0,82903.0,0.0001692]
[1742132832238,0.312061,82906.0,82903.0,0.0001692]
[1742132832498,0.3,82906.0,82905.0,0.241239]
[1742132832657,0.3,82906.0,82905.0,0.2533]
[1742132833038,0.3,82910.0,82908.0,0.24123]
[1742132833244,0.3,82910.0,82909.0,0.012061]
[1742132833451,0.3,82910.0,82907.0,0.012061]
[1742132834169,0.253295,82907.0,82905.0,0.001]
[1742132834367,0.253295,82907.0,82903.0,0.0001692]
[1742132834368,0.312062,82904.0,82903.0,0.0001692]
[1742132835321,0.312061,82906.0,82903.0,0.0001692]
[1742132835526,0.3,82906.0,82903.0,0.0122312]
[1742132835783,0.3,82906.0,82905.0,0.012061]
[1742132836272,0.01890947,82910.0,82909.0,0.012061]
[1742132836474,0.428959,82923.0,82916.0,0.01206]
[1742132836475,0.670148,82923.0,82916.0,0.01206]
[1742132836681,0.01545682,82921.0,82918.0,0.253259]
[1742132836887,0.3,82922.0,82918.0,0.253259]
[1742132837273,0.3,82922.0,82919.0,0.241198]
[1742132837451,0.150819,82925.0,82919.0,0.241198]
[1742132837668,0.01206,82914.0,82909.0,0.253289]
[1742132837881,0.3,82920.0,82911.0,0.012061]
[1742132838080,0.012059,82919.0,82913.0,0.01206]
[1742132838285,0.012059,82919.0,82911.0,0.253281]
[1742132838286,0.3,82915.0,82911.0,0.253281]
[1742132838718,0.3,82913.0,82910.0,0.241222]
[1742132838894,0.3,82913.0,82911.0,0.24122]
[1742132839453,0.3,82913.0,82908.0,0.24123]
[1742132839658,0.31206,82913.0,82908.0,0.253291]
[1742132840000,0.3,82915.0,82911.0,0.012061]
[1742132840279,0.3,82915.0,82911.0,0.253281]
[1742132840455,0.3,82913.0,82908.0,0.253291]
[1742132841001,0.241219,82912.0,82908.0,0.001]
[1742132841210,0.01890987,82912.0,82909.0,0.0001692]
[1742132841462,0.01890987,82912.0,82911.0,0.001]
[1742132842112,0.553286,82910.0,82909.0,0.0001692]
[1742132850096,0.3,82910.0,82909.0,0.0001692]
[1742132850447,0.33097126,82910.0,82909.0,0.0001692]
[1742132853038,0.31891026,82910.0,82909.0,0.0001692]
[1742132853266,0.01891026,82910.0,82909.0,0.0896302]
[1742132853504,0.01891026,82910.0,82909.0,0.07477568]
[1742132853711,0.01891026,82910.0,82909.0,0.08683668]
[1742132855198,0.01891026,82910.0,82909.0,0.07477568]
[1742132855384,0.01891026,82910.0,82905.0,0.0476]
[1742132855385,0.012061,82908.0,82905.0,0.0476]
[1742132855596,0.01891026,82910.0,82909.0,0.012061]
[1742132855749,0.01891026,82910.0,82905.0,0.0476]
[1742132855750,0.01891026,82910.0,82905.0,0.059661]
[1742132855930,0.241236,82907.0,82901.0,0.24125]
[1742132856499,0.01891026,82910.0,82904.0,0.012062]
[1742132856717,0.01891026,82910.0,82906.0,0.012061]
[1742132856902,0.253281,82912.0,82906.0,0.012061]
[1742132857112,0.241224,82911.0,82907.0,0.241231]
[1742132858082,0.012061,82907.0,82904.0,0.0774]
[1742132858288,0.012061,82907.0,82903.0,0.0001692]
[1742132858289,0.012062,82904.0,82903.0,0.0001692]
[1742132859243,0.17082653,82906.0,82903.0,0.0001692]
[1742132859433,0.241239,82905.0,82903.0,0.0001692]
[1742132860153,0.241239,82905.0,82903.0,0.0011692]
[1742132860154,0.27221135,82905.0,82903.0,0.0011692]
[1742132860371,0.312062,82904.0,82903.0,0.0011692]
[1742132860602,0.312062,82904.0,82903.0,0.0031692]
[1742132861026,0.312062,82904.0,82903.0,0.0011692]
[1742132861363,0.312062,82904.0,82903.0,0.0031692]
[1742132861562,0.312062,82904.0,82903.0,0.0001692]
[1742132861789,0.312062,82904.0,82903.0,0.0011692]
[1742132862367,0.312062,82904.0,82903.0,0.0001692]
[1742132863176,0.312062,82904.0,82903.0,0.0011692]
[1742132863316,0.312062,82904.0,82903.0,0.0001692]
[1742132863526,0.35496984,82904.0,82903.0,0.0001692]
[1742132863738,0.35496984,82904.0,82903.0,0.0011692]
[1742132863951,0.312062,82904.0,82903.0,0.0011692]
[1742132864182,0.312062,82904.0,82903.0,0.0001692]
[1742132864320,0.55335,82889.0,82888.0,0.0001692]
[1742132865134,0.57226594,82889.0,82888.0,0.0001692]
[1742132866379,0.59480281,82889.0,82888.0,0.0001692]
[1742132867007,0.60085167,82889.0,82888.0,0.0001692]
[1742132867356,0.58193573,82889.0,82888.0,0.0011692]
[1742132867480,0.32858573,82889.0,82888.0,0.0011692]
[1742132867890,0.32858573,82889.0,82888.0,0.3841222]
[1742132867891,0.02858573,82889.0,82888.0,0.3841222]
[1742132868110,0.02858573,82889.0,82888.0,0.1297692]
[1742132868670,0.26987173,82889.0,82888.0,0.0001692]
[1742132868878,0.27588687,82889.0,82888.0,0.0001692]
[1742132869276,0.25335,82889.0,82888.0,0.0001692]
[1742132870230,0.25335,82889.0,82888.0,0.0011692]
[1742132870645,0.3,82893.0,82889.0,0.253347]
[1742132871043,0.55334,82893.0,82888.0,0.0011692]
[1742132871251,0.012063,82892.0,82888.0,0.0011692]
[1742132871424,0.55334,82893.0,82888.0,0.2414562]
[1742132871653,0.312063,82894.0,82890.0,0.241283]
[1742132871819,0.3,82894.0,82893.0,0.253337]
[1742132872030,0.3,82894.0,82890.0,0.241283]
[1742132872239,0.3,82894.0,82892.0,0.241277]
[1742132872442,0.3,82894.0,82890.0,0.241283]
[1742132872698,0.3,82894.0,82889.0,0.253348]
[1742132872849,0.3,82894.0,82891.0,0.012064]
[1742132873119,0.3,82894.0,82893.0,0.012063]
[1742132873417,0.31891388,82894.0,82893.0,0.093363]
[1742132873790,0.01891388,82894.0,82893.0,0.093363]
[1742132873997,0.01891388,82894.0,82893.0,0.14286921]
[1742132874577,0.01891388,82894.0,82893.0,0.141663]
[1742132874921,0.01891388,82894.0,82893.0,0.139183]
[1742132875124,0.01891388,82894.0,82893.0,0.14338916]
[1742132875342,0.01891388,82894.0,82893.0,0.15793001]
[1742132875943,0.01891388,82894.0,82893.0,0.57232385]
[1742132876468,0.01891388,82894.0,82893.0,0.56832385]
[1742132876821,0.01891388,82894.0,82893.0,0.57232385]
[1742132877023,0.0003384,82903.0,82902.0,0.012062]
[1742132878148,0.0003384,82903.0,82902.0,0.25331]
[1742132878920,0.0003384,82903.0,82902.0,0.25431]
[1742132879346,0.0003384,82903.0,82902.0,0.25631]
[1742132882298,0.02284203,82903.0,82902.0,0.25631]
[1742132882542,0.02284203,82903.0,82902.0,0.003]
[1742132882748,0.02284203,82903.0,82902.0,0.015062]
[1742132883390,0.04175293,82903.0,82902.0,0.015062]
[1742132883526,0.04175293,82903.0,82902.0,0.003]
[1742132883527,0.35381493,82903.0,82902.0,0.003]
[1742132884632,0.42591493,82903.0,82902.0,0.003]
[1742132884806,0.55335,82889.0,82888.0,0.0001692]
[1742132885501,0.57226526,82889.0,82888.0,0.0001692]
[1742132886258,0.59476889,82889.0,82888.0,0.0001692]
[1742132886408,0.59576889,82889.0,82888.0,0.0001692]
[1742132887035,0.60181665,82889.0,82888.0,0.0001692]
[1742132887234,0.58290139,82889.0,82888.0,0.0001692]
[1742132889531,0.58290139,82889.0,82871.0,0.0009692]
[1742132889532,0.553374,82881.0,82880.0,3e-07]
[1742132889737,1.03732655,82881.0,82880.0,3e-07]
[1742132889957,0.99441871,82881.0,82880.0,3e-07]
[1742132890156,1.13381871,82881.0,82880.0,3e-07]
[1742132890358,1.17524364,82881.0,82880.0,3e-07]
[1742132890633,0.012066,82872.0,82871.0,0.0009692]
[1742132891411,0.02690313,82872.0,82871.0,0.0009692]
[1742132891608,0.012066,82872.0,82871.0,0.0009692]
[1742132891769,0.01811376,82872.0,82871.0,0.0009692]
[1742132891976,0.04061739,82872.0,82871.0,0.00138148]
[1742132892586,0.34061739,82872.0,82871.0,0.00138148]
[1742132893021,0.34361739,82872.0,82871.0,0.00138148]
[1742132893838,0.35814926,82872.0,82871.0,0.00138148]
[1742132894040,0.37707121,82872.0,82871.0,0.00138148]
[1742132895613,0.37707121,82872.0,82871.0,0.00032432]
[1742132896202,0.54454624,82872.0,82871.0,0.00032432]
[1742132896617,1.6277437,82872.0,82871.0,3.2e-07]
[1742132896819,1.6277437,82872.0,82858.0,0.0001695]
[1742132896820,0.012068,82859.0,82858.0,0.0001695]
[1742132897022,1.459761,82859.0,82858.0,0.0001695]
[1742132897756,1.50266884,82859.0,82858.0,0.0001695]
[1742132898168,2.09750084,82859.0,82858.0,0.0001695]
[1742132898377,0.553463,82852.0,82831.0,0.0008]
[1742132898734,0.59637084,82852.0,82832.0,0.24145]
[1742132899140,0.693383,82852.0,82840.0,0.2535]
[1742132899740,0.69943076,82852.0,82840.0,0.012071]
[1742132899936,0.72493439,82852.0,82840.0,0.012071]
[1742132900137,0.74385983,82852.0,82840.0,0.012071]
[1742132900362,0.72893439,82852.0,82838.0,0.241432]
[1742132900724,0.58901439,82852.0,82838.0,0.253503]
[1742132901075,0.75313452,82852.0,82839.0,0.012071]
[1742132901242,0.75313452,82852.0,82838.0,0.012071]
[1742132901441,0.75313452,82852.0,82838.0,0.253503]
[1742132901645,0.58901439,82852.0,82843.0,0.24142]
[1742132901846,0.72905439,82852.0,82843.0,0.012071]
[1742132902298,0.72905439,82852.0,82842.0,0.241421]
[1742132902698,0.72605439,82852.0,82836.0,0.2536792]
[1742132902900,0.72605439,82852.0,82836.0,0.0001692]
[1742132903072,0.72805439,82852.0,82836.0,0.0001692]
[1742132903496,0.58401439,82852.0,82836.0,0.0001692]
[1742132903718,0.58401439,82852.0,82851.0,1e-07]
[1742132903719,1.85807185,82852.0,82851.0,1e-07]
[1742132904026,1.27497185,82852.0,82851.0,1e-07]
[1742132904170,1.35425726,82852.0,82851.0,1e-07]
[1742132904397,1.31134942,82852.0,82851.0,1e-07]
[1742132904712,1.28237789,82852.0,82851.0,1e-07]
[1742132904933,1.27737789,82852.0,82851.0,1e-07]
[1742132905277,0.553509,82837.0,82836.0,0.0001692]
[1742132905471,0.694109,82837.0,82836.0,0.0001692]
[1742132905914,0.7130374,82837.0,82836.0,0.0001692]
[1742132906126,0.4595284,82837.0,82836.0,0.0001692]
[1742132906548,0.4605284,82837.0,82836.0,0.00029278]
[1742132906748,0.3319994,82837.0,82836.0,0.00029278]
[1742132907098,0.3329994,82837.0,82836.0,0.00029278]
[1742132907297,0.314071,82837.0,82836.0,0.00029278]
[1742132907813,0.313071,82837.0,82836.0,0.00029278]
[1742132908022,0.312071,82837.0,82836.0,0.00029278]
[1742132908592,0.012071,82837.0,82836.0,0.00029278]
[1742132909317,0.241436,82838.0,82836.0,0.00029278]
[1742132909542,0.001,82837.0,82836.0,0.00029278]
[1742132909758,0.02011876,82837.0,82836.0,0.00029278]
[1742132909959,0.00804776,82837.0,82836.0,0.00029278]
[1742132910160,0.00704776,82837.0,82836.0,0.00029278]
[1742132910732,0.00704776,82837.0,82836.0,0.25380478]
[1742132911120,0.00604776,82837.0,82836.0,0.00029278]
[1742132911319,0.02855139,82837.0,82836.0,0.00029278]
[1742132911490,0.02955139,82837.0,82836.0,0.00029278]
[1742132911696,0.02955139,82837.0,82836.0,0.01236478]
[1742132912341,0.03055139,82837.0,82836.0,0.00029278]
[1742132912561,0.03055139,82837.0,82836.0,0.01236478]
[1742132912767,0.03055139,82837.0,82836.0,0.08866478]
[1742132913812,0.02955139,82837.0,82836.0,0.07659278]
[1742132914015,0.28306039,82837.0,82836.0,0.07659278]
[1742132914188,0.02955139,82837.0,82836.0,0.00029278]
[1742132914389,0.02855139,82837.0,82836.0,0.00029278]
[1742132914734,0.04062239,82837.0,82836.0,0.00029278]
[1742132915605,0.07652573,82837.0,82836.0,0.00029278]
[1742132916392,0.13081027,82837.0,82836.0,0.00029278]
[1742132916935,0.07652573,82837.0,82836.0,0.00029278]
[1742132917631,0.07652573,82837.0,82771.0,0.012081]
[1742132917632,0.012078,82789.0,82771.0,0.012081]
[1742132917810,0.012078,82789.0,82768.0,0.0001692]
[1742132917811,0.553705,82773.0,82768.0,0.0001692]
[1742132918023,0.696705,82773.0,82768.0,0.0001692]
[1742132918245,0.78083057,82773.0,82768.0,0.0001692]
[1742132918449,0.73792273,82773.0,82772.0,0.00058436]
[1742132918654,0.75274985,82773.0,82772.0,0.00058436]
[1742132919066,0.76993909,82773.0,82772.0,0.00058436]
[1742132919276,0.37928185,82773.0,82772.0,0.00058436]
[1742132919481,0.06445473,82773.0,82772.0,0.00058436]
[1742132919688,0.07653573,82773.0,82772.0,0.00058436]
[1742132919897,0.25600985,82775.0,82772.0,0.00058436]
[1742132920104,0.241636,82769.0,82761.0,0.33004]
[1742132920281,0.241636,82769.0,82762.0,7.008e-05]
[1742132920483,0.012081,82769.0,82762.0,7.008e-05]
[1742132920685,0.253719,82769.0,82762.0,7.008e-05]
[1742132920970,0.241642,82767.0,82762.0,7.008e-05]
[1742132921127,0.012082,82764.0,82762.0,7.008e-05]
[1742132921524,0.253735,82763.0,82762.0,7.008e-05]
[1742132922136,0.012082,82763.0,82762.0,7.008e-05]
[1742132922894,0.012082,82763.0,82762.0,0.00023938]
[1742132925178,0.158362,82766.0,82762.0,0.00023938]
[1742132925378,0.14628,82766.0,82762.0,0.00023938]
[1742132925584,0.3,82768.0,82762.0,0.24189538]
[1742132926138,0.428981,82772.0,82769.0,0.241636]
[1742132926139,0.4169,82772.0,82769.0,0.241636]
[1742132926364,0.01208,82781.0,82772.0,0.012081]
[1742132926579,0.012082,82767.0,82762.0,0.00023938]
[1742132926800,0.25372,82768.0,82762.0,0.01232138]
[1742132927032,0.25372,82768.0,82762.0,0.00023938]
[1742132927237,0.241645,82766.0,82762.0,0.00023938]
[1742132927444,0.253727,82766.0,82762.0,0.00023938]
[1742132927643,0.012082,82767.0,82762.0,0.00023938]
[1742132927796,0.25372,82768.0,82763.0,0.241653]
[1742132928000,0.241602,82781.0,82772.0,0.012081]
[1742132928206,0.253693,82777.0,82770.0,0.012081]
[1742132928409,0.241619,82775.0,82768.0,0.012081]
[1742132928637,0.253712,82771.0,82763.0,0.241653]
[1742132928848,0.241648,82765.0,82762.0,0.00023938]
[1742132929049,0.012082,82763.0,82762.0,0.00023938]
[1742132929671,0.253735,82763.0,82762.0,0.00023938]
[1742132930239,0.012082,82763.0,82762.0,0.00023938]
[1742132930447,0.24771042,82763.0,82762.0,0.00023938]
[1742132930624,0.24381527,82763.0,82762.0,0.00023938]
[1742132931021,0.23173327,82763.0,82762.0,0.00023938]
[1742132931388,0.27942753,82763.0,82762.0,0.00023938]
[1742132931576,0.03561226,82763.0,82762.0,0.24189538]
[1742132931774,0.03561226,82763.0,82762.0,0.25397738]
[1742132932941,0.02226907,82763.0,82762.0,0.25397738]
[1742132933659,0.02226907,82763.0,82762.0,0.3791644]
[1742132934082,0.50180754,82771.0,82770.0,0.253714]
[1742132934220,0.50180754,82771.0,82768.0,0.241636]
[1742132934424,0.50180754,82771.0,82767.0,0.012082]
[1742132934624,0.52074889,82771.0,82766.0,0.241644]
[1742132935446,0.77446189,82771.0,82766.0,0.241644]
[1742132935654,0.52074889,82771.0,82769.0,0.012081]
[1742132935908,0.52074889,82771.0,82766.0,0.241644]
[1742132936684,0.52074889,82771.0,82765.0,0.012082]
[1742132936685,0.241633,82770.0,82765.0,0.012082]
[1742132936891,0.51388854,82771.0,82765.0,0.253728]
[1742132937918,0.50180754,82771.0,82768.0,0.241637]
[1742132938113,0.50180754,82771.0,82770.0,0.012081]
[1742132938327,0.3,82787.0,82780.0,0.01208]
[1742132938548,0.3,82787.0,82782.0,0.012079]
[1742132938697,0.012078,82789.0,82784.0,0.012079]
[1742132938902,0.3,82792.0,82786.0,0.012079]
[1742132939129,0.312078,82792.0,82785.0,0.253667]
[1742132939334,0.3,82790.0,82783.0,0.0792]
[1742132939696,0.01208,82779.0,82774.0,0.320819]
[1742132939920,0.241603,82781.0,82774.0,0.091281]
[1742132940305,0.01208,82781.0,82775.0,0.253696]
[1742132940490,0.253683,82781.0,82775.0,0.253696]
[1742132940692,0.253683,82781.0,82776.0,0.241614]
[1742132940849,0.253683,82781.0,82776.0,0.253694]
[1742132941059,0.012079,82782.0,82777.0,0.25369]
[1742132941282,0.253679,82782.0,82777.0,0.01208]
[1742132941436,0.241603,82781.0,82777.0,0.01208]
[1742132941778,0.241593,82784.0,82778.0,0.241609]
[1742132941979,0.002,82790.0,82789.0,0.012078]
[1742132942220,0.002,82790.0,82780.0,0.01208]
[1742132942560,0.241583,82788.0,82783.0,0.241593]
[1742132943187,0.24199698,82788.0,82783.0,0.241593]
[1742132943622,0.00163168,82783.0,82780.0,0.253683]
[1742132943825,0.00163168,82783.0,82781.0,0.241599]
[1742132944024,0.00163168,82783.0,82781.0,0.253679]
[1742132944202,0.02057021,82783.0,82781.0,0.253679]
[1742132944610,0.00163168,82783.0,82781.0,0.253679]
[1742132944830,0.00163168,82783.0,82781.0,0.251199]
[1742132945032,0.00163168,82783.0,82780.0,0.253683]
[1742132945490,0.00163168,82783.0,82782.0,0.012079]
[1742132945904,0.00263168,82783.0,82782.0,0.012079]
[1742132946335,0.00163168,82783.0,82782.0,0.012079]
[1742132946750,0.00263168,82783.0,82782.0,0.01328685]
[1742132946994,0.00263168,82783.0,82782.0,0.14068685]
[1742132947201,0.00263168,82783.0,82782.0,0.14068665]
[1742132948784,0.00263168,82783.0,82782.0,0.28616665]
[1742132949002,0.00163168,82783.0,82782.0,0.29949985]
[1742132949209,0.00075278,82788.0,82787.0,0.012079]
[1742132949410,0.00075278,82788.0,82787.0,0.34701043]
[1742132949612,0.00075278,82788.0,82787.0,0.81520285]
[1742132949613,7.8e-07,82788.0,82787.0,0.81520285]
[1742132950047,7.8e-07,82788.0,82787.0,0.57956221]
[1742132950250,7.8e-07,82788.0,82787.0,0.0776]
[1742132950458,7.8e-07,82788.0,82787.0,0.0796]
[1742132950659,7.8e-07,82788.0,82787.0,0.091679]
[1742132951098,0.00100078,82788.0,82787.0,0.093679]
[1742132951309,0.00100078,82788.0,82787.0,0.004]
[1742132951739,0.00100078,82788.0,82787.0,0.245583]
[1742132951935,0.00100078,82788.0,82787.0,0.257662]
[1742132952181,0.00100078,82788.0,82787.0,0.255662]
[1742132952523,7.8e-07,82788.0,82787.0,0.331262]
[1742132952920,7.8e-07,82788.0,82787.0,0.333262]
[1742132953183,0.00100078,82788.0,82787.0,0.335262]
[1742132953339,7.8e-07,82788.0,82787.0,0.331262]
[1742132953746,7.8e-07,82788.0,82787.0,0.335262]
[1742132953942,7.8e-07,82788.0,82787.0,0.333262]
[1742132954150,7.8e-07,82788.0,82787.0,0.331262]
[1742132954597,7.8e-07,82788.0,82787.0,0.333262]
[1742132955603,7.8e-07,82788.0,82787.0,0.335262]
[1742132957024,7.8e-07,82788.0,82787.0,0.0816]
[1742132957226,7.8e-07,82788.0,82787.0,0.004]
[1742132958040,0.31207978,82788.0,82787.0,0.004]
[1742132958609,0.31207978,82788.0,82787.0,0.002]
[1742132958948,0.31207978,82788.0,82787.0,0.004]
[1742132959155,0.31207978,82788.0,82787.0,0.002]
[1742132959461,0.3,82782.0,82777.0,0.01208]
[1742132959656,0.3,82782.0,82776.0,0.241614]
[1742132960067,0.241611,82778.0,82773.0,0.012081]
[1742132960530,0.00948,82781.0,82773.0,0.012081]
[1742132960738,0.012079,82783.0,82767.0,0.012082]
[1742132960739,0.01208,82775.0,82767.0,0.012082]
[1742132960948,0.01208,82777.0,82771.0,0.012081]
[1742132961148,0.01208,82778.0,82772.0,0.253706]
[1742132961349,0.253695,82777.0,82771.0,0.253708]
[1742132961552,0.01208,82775.0,82770.0,0.012081]
[1742132961755,0.253705,82774.0,82767.0,0.253723]
[1742132962338,0.012081,82773.0,82767.0,0.253723]
[1742132962539,0.253711,82772.0,82767.0,0.253723]
[1742132962898,0.253711,82772.0,82768.0,0.0011694]
[1742132963103,0.253713,82771.0,82768.0,0.0011694]
[1742132963304,0.012081,82771.0,82768.0,0.0011694]
[1742132963521,0.012081,82771.0,82768.0,0.0001694]
[1742132963755,0.253709,82772.0,82768.0,0.001]
[1742132963901,0.253709,82772.0,82768.0,0.003]
[1742132964102,0.241633,82770.0,82768.0,0.002]
[1742132964328,0.241638,82769.0,82764.0,0.012082]
[1742132964511,0.253714,82770.0,82768.0,0.004]
[1742132964913,0.012081,82772.0,82768.0,0.004]
[1742132964914,0.3,82772.0,82768.0,0.004]
[1742132965122,0.3,82772.0,82770.0,0.012081]
[1742132965522,0.3,82772.0,82771.0,0.012081]
[1742132966069,0.3,82779.0,82774.0,0.24162]
[1742132966658,0.01894036,82778.0,82775.0,0.22972102]
[1742132966804,0.01894036,82778.0,82770.0,0.253711]
[1742132966805,0.012082,82763.0,82758.0,0.241666]
[1742132967006,0.241651,82764.0,82757.0,0.012083]
[1742132967261,0.012082,82763.0,82758.0,0.253749]
[1742132967512,0.012082,82763.0,82756.0,0.241672]
[1742132968193,0.012082,82763.0,82762.0,0.00058338]
[1742132968404,0.312082,82763.0,82762.0,0.00058338]
[1742132968781,0.32620206,82763.0,82762.0,0.00058338]
[1742132969193,0.32720206,82763.0,82762.0,0.00058338]
[1742132969489,0.001,82763.0,82762.0,0.00058338]
[1742132969690,0.312082,82763.0,82762.0,0.00058338]
[1742132969891,0.3310254,82763.0,82762.0,0.00058338]
[1742132970498,0.33317725,82763.0,82762.0,0.00058338]
[1742132970701,0.34525925,82763.0,82762.0,0.00058338]
[1742132970907,0.32631585,82763.0,82762.0,0.00058338]
[1742132972468,0.312082,82763.0,82762.0,0.00058338]
[1742132972831,0.3,82767.0,82764.0,0.241648]
[1742132973034,0.3,82767.0,82764.0,0.24165]
[1742132973369,0.3,82769.0,82765.0,0.241647]
[1742132973717,0.541637,82769.0,82765.0,0.241647]
[1742132973944,0.56057919,82769.0,82765.0,0.241647]
[1742132974144,0.56057919,82769.0,82764.0,0.012082]
[1742132974145,0.001,82767.0,82764.0,0.012082]
[1742132974330,0.242643,82767.0,82763.0,0.241652]
[1742132974529,0.254725,82767.0,82762.0,0.01266538]
[1742132974931,0.254725,82767.0,82762.0,0.25431938]
[1742132975143,0.254725,82767.0,82762.0,0.01266538]
[1742132975335,0.241649,82765.0,82762.0,0.00058338]
[1742132976315,0.001,82767.0,82763.0,0.241653]
[1742132976519,0.001,82767.0,82765.0,0.241647]
[1742132976718,0.3,82769.0,82768.0,0.25372]
[1742132977182,0.3,82769.0,82765.0,0.333829]
[1742132977183,0.4169,82782.0,82775.0,0.01208]
[1742132977386,0.3,82781.0,82779.0,0.241605]
[1742132977582,0.3,82781.0,82779.0,0.253685]
[1742132977807,0.76724,82783.0,82782.0,0.012079]
[1742132978018,0.76724,82783.0,82782.0,0.010079]
[1742132978355,0.76724,82783.0,82781.0,0.241601]
[1742132978725,0.76724,82783.0,82781.0,0.253681]
[1742132978878,0.76724,82783.0,82782.0,0.012079]
[1742132979081,0.76724,82783.0,82782.0,0.011079]
[1742132979344,0.76724,82783.0,82781.0,0.253681]
[1742132979554,0.76724,82783.0,82779.0,0.253684]
[1742132979703,0.002,82781.0,82780.0,0.253681]
[1742132980093,0.76724,82783.0,82781.0,0.241599]
[1742132980492,0.77024,82783.0,82781.0,0.241599]